Cogmind - Beta 15 @@@ ROGUE MODE // 2025.06.26 @ 16:31:43 Player: Minty Result: Self-destructed Performance ------------- Evolutions (6) 3000 Regions Visited (14) 2800 Robots Destroyed (133) 665 Value Destroyed (5933) 5933 Prototype IDs (20) 400 Alien Tech Used (0) 0 Bonus (4383) 4383 TOTAL SCORE: 17181 Bonus ------- Triggered High Security 500 High Alert Combat Kills 1028 Follower Combat Kills 1755 Registered with UFD 300 Met Optimus in HQ 500 Met Imprinter 300 Cogmind --------- Core Integrity 357/1150 Matter 148/300 Energy 71/100 System Corruption 30% Temperature Cool (0) Movement Core (50) Location -4/Factory Parts ------- > --- POWER (2) -------- (None) > --- PROPULSION (7) --- (None) > --- UTILITY (7) ------ Improved Target Analyzer Experimental System Shield Advanced System Restoration Module > --- WEAPON (3) ------- (None) > --- INVENTORY (5) ---- Heavy Antimatter Reactor Improved Energy Well (400) Drone Bay (2/2) GAL Module Peak State ------------ > --- POWER ------------ Light Angular Momentum Engine Light Angular Momentum Engine > --- PROPULSION ------- Gravmag Array Gravmag Array Improved Antigrav System Impulse Thruster Array > --- UTILITY ---------- Improved Heat Sink Improved Heat Sink Advanced Heat Sink Advanced Weight Redist. System Improved Target Analyzer Improved Particle Charger Improved Hacking Suite > --- WEAPON ----------- Long-range Proton Cannon Advanced Plasma Cannon Hardcell Cannon > --- INVENTORY -------- Micro Fission Core Precision Matter Filter Drone Bay GAL Module [Rating: 103] Favorites ----------- Power Improved Deuterium Engine Engine Improved Deuterium Engine Power Core Neutrino Core Reactor Light Antimatter Reactor Propulsion Carbon-fiber Leg Treads Medium Treads Leg Carbon-fiber Leg Wheel Wheel Hover Unit Gravmag Array Flight Unit Nuclear Pulse Thruster Utility Large Storage Unit Device Terrain Scanner Storage Large Storage Unit Processor Core Analyzer Hackware Improved Hacking Suite Protection Makeshift Light Armor Plating Weapon Companion Sword Energy Gun Shock Rifle Energy Cannon Phase Cannon Ballistic Gun Assault Rifle Ballistic Cannon Light Antimatter Cannon Launcher Rocket Launcher Special Weapon Junk Cannon Impact Weapon Hammer Slashing Weapon Companion Sword Piercing Weapon CR-A16's Pointy Stick Build | -11 -10 -10 -8 -6 -6 -6 -6 -5 -5 -5 -5 -4 -4 -4 ------- Run | Yrd Mat Sub Scr Fac Low Low Zio Pro Fac Upp Upp Fac Was Fac Slots Evolved 12 | . . . . 8 . . . . 2 . . 2 . . Power 1 | . . . . 1 . . . . . . . . . . Propulsion 5 | . . . . 3 . . . . . . . 2 . . Utility 5 | . . . . 3 . . . . 2 . . . . . Weapon 1 | . . . . 1 . . . . . . . . . . Parts Attached 146 | . 4 2 12 29 6 8 5 1 14 8 . 5 3 49 Power 31 | . 1 . 1 6 3 3 1 1 3 2 . 1 . 9 Engine 15 | . 1 . 1 6 . 1 1 . . 1 . . . 4 Core 12 | . . . . . 3 1 . 1 3 1 . . . 3 Reactor 4 | . . . . . . 1 . . . . . 1 . 2 Propulsion 40 | . . 2 4 8 2 3 1 . 2 1 . 1 2 14 Treads 6 | . . . . 2 1 . . . . . . . . 3 Leg 12 | . . . 2 4 1 3 1 . . . . . 1 . Wheel 15 | . . 2 2 1 . . . . 1 1 . 1 . 7 Hover 4 | . . . . . . . . . 1 . . . . 3 Flight 3 | . . . . 1 . . . . . . . . 1 1 Utility 49 | . 1 . 3 10 1 2 1 . 6 3 . 2 1 19 Device 26 | . . . 3 6 1 . 1 . 1 . . . 1 13 Storage 4 | . 1 . . . . . . . . . . . . 3 Processor 12 | . . . . 4 . 2 . . 2 . . 2 . 2 Hackware 6 | . . . . . . . . . 2 3 . . . 1 Protection 1 | . . . . . . . . . 1 . . . . . Artifact . | . . . . . . . . . . . . . . . Weapon 26 | . 2 . 4 5 . . 2 . 3 2 . 1 . 7 Energy Gun 5 | . . . 2 . . . 1 . . 1 . 1 . . Energy Cannon 8 | . 1 . . 3 . . . . . . . . . 4 Ballistic Gun . | . . . . . . . . . . . . . . . Ballistic Cannon 5 | . . . . . . . . . 2 . . . . 3 Launcher 3 | . . . . 2 . . . . 1 . . . . . Special Weapon 1 | . . . 1 . . . . . . . . . . . Impact Weapon 1 | . 1 . . . . . . . . . . . . . Slashing Weapon 2 | . . . 1 . . . . . . 1 . . . . Piercing Weapon 1 | . . . . . . . 1 . . . . . . . Special Melee Weapon . | . . . . . . . . . . . . . . . Unidentified Prototypes 8 | . . . 2 . . . . . . . . . . 6 Corrupted Parts 3 | . . . . . . 1 . . . . . . 1 1 System Corruption 14 | . . . . . . 3 . . . . . . 7 4 Parts Lost 74 | . . 4 . 8 . 7 . . 8 10 5 4 1 27 Power 14 | . . 1 . 3 . 2 . . 2 2 . . . 4 Propulsion 25 | . . 2 . 2 . 2 . . 5 2 1 1 . 10 Utility 21 | . . . . . . 2 . . 1 4 1 3 1 9 Weapon 14 | . . 1 . 3 . 1 . . . 2 3 . . 4 Highest Loss Streak 15 | . . 4 . 2 . 5 . . 4 5 5 3 1 15 To Critical Strikes . | . . . . . . . . . . . . . . . Average Backups 9 | . 9 12 12 10 10 9 11 13 13 8 7 3 4 3 Power . | . 1 2 1 1 . . . . . . 1 1 1 . Propulsion . | . 5 6 1 . 1 . . . . . . . . . Utility 5 | . 1 3 4 4 7 7 8 10 8 6 4 2 3 2 Weapon 2 | . 1 1 3 3 2 1 2 3 4 2 1 . . . Tool/Special . | . . . . . . . . . . . . . . . Unused Backups 36 | . 7 2 14 2 1 . 1 2 4 . 2 . . 1 Power 2 | . 2 . . . . . . . . . . . . . Propulsion 9 | . 2 2 4 . 1 . . . . . . . . . Utility 11 | . . . 5 . . . . 1 2 . 2 . . 1 Weapon 11 | . 3 . 4 1 . . 1 . 2 . . . . . Tool/Special 3 | . . . 1 1 . . . 1 . . . . . . Average Slot Usage (%) 79 | . 85 75 92 93 100 88 92 93 81 54 53 27 24 64 Engine 5 | . 14 10 13 12 10 . 6 4 . 1 . . . 4 Core 2 | . . . . . 2 9 . 1 7 3 . . . 1 Reactor 1 | . . . . . . 2 6 6 1 . . . . 1 Treads 1 | . . . . 1 6 5 . . . . . . . 2 Leg 15 | . 28 21 1 22 26 23 33 33 18 . . . . . Wheel 4 | . . 4 25 1 . . . . . . 2 1 . 6 Device 7 | . . . 8 5 6 4 11 13 8 3 . . 3 15 Storage 6 | . 14 14 14 6 6 6 6 6 5 4 4 . . 2 Processor 11 | . . . . 19 20 20 14 13 11 9 5 11 13 6 Hackware 4 | . . . . . . . . . 10 14 28 13 5 3 Energy Gun 3 | . . . 24 . . . . . . . . . . . Energy Cannon 2 | . 12 11 . 7 13 4 . . . . . . . 2 Special Weapon 1 | . . . . . . 1 5 6 3 . . . . . Slashing Weapon 3 | . . . 1 5 6 6 6 6 2 . 5 . . . Peak Build Rating 103 | . 7 7 38 92 86 85 73 74 86 64 49 38 66 103 Average Rating 57 | . 6 6 18 76 80 69 70 73 72 44 43 29 31 80 On Entrance 43 | 6 6 7 4 38 84 85 58 73 74 60 45 29 22 66 Naked Turns . | . . . . . . . . . . . . . . . Heaviest Build 75 | 11 30 30 33 64 75 75 66 66 70 58 33 18 3 57 Greatest Support 91 | 20 20 20 30 91 91 81 84 84 84 16 16 16 3 90 Greatest Overweight (x) 19 | . 1 2 1 1 . 1 . . 13 19 10 1 . 2 Average Overweight (x) . | . . . . . . . . . 1 5 1 . . . Largest Inventory Capacity 15 | . 15 15 15 15 15 15 15 15 15 15 15 5 5 5 Average Capacity 13 | . 14 15 15 15 15 15 15 15 15 14 14 5 5 5 Most Carried 15 | . 13 13 15 15 15 15 15 15 15 15 14 5 5 5 Average Carried 12 | . 9 12 14 13 14 14 14 14 14 14 12 4 4 4 Final Capacity 15 | 8 15 15 15 15 15 15 15 15 15 15 5 5 5 5 Final Carried 15 | 6 13 12 15 15 15 15 15 15 15 14 5 5 5 4 Class Distribution -------------------- 34% | Scavenger-Mutant 28% | Mutant 19% | Hacker-Mutant 8% | Scavenger-Assassin 3% | Wizard-Mutant Dominant Class ---------------- Mutant | -10/Materials Mutant | -10/Subcaves Mutant | -8/Scraptown Mutant | -6/Factory Scavenger-Mutant | -6/Lower Caves Scavenger-Assassin | -6/Lower Caves Scavenger-Mutant | -6/Zion Scavenger-Mutant | -5/Proximity Caves Scavenger-Mutant | -5/Factory Hacker-Mutant | -5/Upper Caves Wizard-Mutant | -5/Upper Caves Hacker-Mutant | -4/Factory Mutant | -4/Waste Mutant | -4/Factory Resources | -11 -10 -10 -8 -6 -6 -6 -6 -5 -5 -5 -5 -4 -4 -4 ----------- Run | Yrd Mat Sub Scr Fac Low Low Zio Pro Fac Upp Upp Fac Was Fac Matter Collected 3365 | 200 188 . 185 440 100 170 100 10 281 575 13 . . 1103 Remotely . | . . . . . . . . . . . . . . . Salvage Created 6227 | . 198 . 28 1422 362 1403 . 65 1081 686 48 . . 934 Parts 231 | . 6 . . 71 22 22 . 4 42 18 3 . . 43 Haulers Intercepted 2 | . . . . . . . . . 1 . . . . 1 Recyclers Shooed 4 | . . . . 2 . . . . 2 . . . . . Parts Field Recycled . | . . . . . . . . . . . . . . . Retrieved Matter . | . . . . . . . . . . . . . . . Parts Self-Destructed 72 | . . 8 . . 10 11 2 29 . 10 2 . . . Prevented 10 | . . . . . . 1 . 8 . 1 . . . . Kills | -11 -10 -10 -8 -6 -6 -6 -6 -5 -5 -5 -5 -4 -4 -4 ------- Run | Yrd Mat Sub Scr Fac Low Low Zio Pro Fac Upp Upp Fac Was Fac Combat Hostiles Destroyed 92 | . 3 . 1 20 4 11 . 1 16 13 1 . . 22 Melee 21 | . 1 . 1 10 1 4 . 1 2 1 . . . . Guns 2 | . . . . . . . . . . 2 . . . . Cannons 33 | . . . . 3 3 4 . . 7 1 . . . 15 AOE 24 | . . . . 6 . . . . 3 9 1 . . 5 Classes Destroyed 17 | . 6 . 1 4 1 3 . . 2 . . . . . Worker 16 | . 1 . . 4 . . . . 5 . . . . 6 Builder 8 | . 1 . . 4 . . . . 1 . . . . 2 Tunneler 4 | . 1 . . . . . . . 2 . . . . 1 Hauler 2 | . . . . . . . . . 1 . . . . 1 Recycler 2 | . . . . 1 . . . . 1 . . . . . Minesweeper 2 | . . . . . . 1 . . . 1 . . . . Mechanic 4 | . 1 . . . . 1 . . 1 . . . . 1 Operator 2 | . 1 . . . . . . . 1 . . . . . Swarmer 20 | . . . . 2 . 1 . . 4 5 . . . 8 Grunt 45 | . 3 . . 14 4 5 . 1 5 4 1 . . 8 Brawler 3 | . . . . . . 2 . . 1 . . . . . Duelist 6 | . . . . . . 2 . . . 3 . . . 1 Sentry 5 | . . . . 3 . 1 . . . 1 . . . . Hunter 3 | . . . . 2 . . . . 1 . . . . . Programmer 10 | . . . . . . . . . 5 . . . . 5 Federalist 1 | . . . 1 . . . . . . . . . . . Decomposer 2 | . . . . . 1 1 . . . . . . . . Packrat 3 | . . . . . . . . . . 3 . . . . Samaritan 2 | . . . . . 2 . . . . . . . . . Best Kill Streak 7 | . 4 . 1 6 4 5 . 1 6 6 1 . . 7 Combat Bots Only 7 | . 3 . 1 6 4 5 . 1 5 6 1 . . 7 Max Kills in Single Turn 4 | . 1 . 1 3 1 1 . 1 4 2 1 . . 3 Gunslinging . | . . . . . . . . . . . . . . . Exploded 2 | . . . . 2 . . . . 2 2 1 . . 2 Melee 1 | . 1 . 1 1 1 1 . 1 1 1 . . . . Uniques/NPCs Destroyed . | . . . . . . . . . . . . . . . Combat | -11 -10 -10 -8 -6 -6 -6 -6 -5 -5 -5 -5 -4 -4 -4 -------- Run | Yrd Mat Sub Scr Fac Low Low Zio Pro Fac Upp Upp Fac Was Fac Hostile Shots Fired 996 | . 32 23 60 203 21 57 . 5 129 80 33 30 1 322 Missed 326 | . 10 4 33 66 8 17 . 3 37 26 7 12 . 103 Hits 670 | . 22 19 27 137 13 40 . 2 92 54 26 18 1 219 Melee 13 | . . . . . . 5 . . . 5 . . 1 2 Projectile 657 | . 22 19 27 137 13 35 . 2 92 49 26 18 . 217 Critical Strikes 33 | . . . . 2 . 2 . . 9 1 2 2 . 15 Damage Taken 11382 | . 249 411 379 1766 262 835 . 41 1416 1093 562 380 52 3936 Core 2236 | . 36 82 71 171 49 81 . . 207 354 392 274 52 467 Absorbed by Shields 195 | . . . . . . . . . 148 47 . . . . Reduced by Siege Mode 52 | . . . . . . . . . . . . . . 52 Ignored by Resistances 435 | . . . . . . . . . . . . . . 435 Regen/Repaired (Parts) 92 | . . . . . . . 92 . . . . . . . Core Remaining (%) 48 | 100 . . 24 . . . . 64 . . 4 . . . Volleys Fired 216 | . 5 . 2 17 3 15 . 1 48 25 1 . . 99 Largest 3 | . 1 . 2 3 2 1 . 1 2 2 1 . . 3 Hottest 260 | . 60 . 100 260 175 . . . 90 124 43 . . 234 Shots Fired 317 | . 5 . 4 30 6 15 . 1 51 27 1 . . 177 Gun 15 | . . . 4 1 . . . . . 10 . . . . Cannon 238 | . 5 . . 23 6 . . . 23 4 . . . 177 Launcher 22 | . . . . 6 . . . . 5 10 1 . . . Special 42 | . . . . . . 15 . 1 23 3 . . . . Kinetic 157 | . . . . . . . . . 23 4 . . . 130 Thermal 60 | . 5 . . 23 6 . . . . 10 . . . 16 Explosive 22 | . . . . 6 . . . . 5 10 1 . . . Electromagnetic 36 | . . . 4 1 . . . . . . . . . 31 Impact 42 | . . . . . . 15 . 1 23 3 . . . . Robot Hit Streak 17 | . 2 . 4 7 11 17 . 4 7 9 . . . 8 Robot Miss Streak 6 | . 1 . . 1 . 1 . . 4 2 1 . . 6 Penetration Max . | . . . . . . . . . . . . . . . Secondary Targets . | . . . . . . . . . . . . . . . Shots Hit Robots 310 | . 21 2 4 60 14 48 . 2 40 28 . . . 91 Core Hits 185 | . 3 . 2 45 10 20 . 1 26 34 3 . . 41 Critical Kills 7 | . . . . 1 . 2 . . 4 . . . . . Critical Parts Destroyed 8 | . 1 . . . . 3 . . 3 1 . . . . Critical Strikes 38 | . 1 . . 3 . 7 . . 10 2 . . . 15 Burn 1 | . . . . . . . . . . 1 . . . . Meltdown 1 | . . . . 1 . . . . . . . . . . Destroy 4 | . . . . . . . . . 3 1 . . . . Blast 13 | . . . . . . . . . 2 . . . . 11 Corrupt 4 | . . . . . . . . . . . . . . 4 Smash 10 | . 1 . . . . 5 . . 4 . . . . . Impale 1 | . . . . . . . . . 1 . . . . . Melee Attacks 173 | . 22 2 8 53 14 41 1 1 19 12 . . . . Impact 24 | . 22 2 . . . . . . . . . . . . Slashing 131 | . . . 8 53 14 41 1 1 12 1 . . . . Piercing 18 | . . . . . . . . . 7 11 . . . . Sneak Attacks 41 | . 6 . . 15 4 5 . . 7 4 . . . . Combat Hostiles . | . . . . . . . . . . . . . . . Follow-up Attacks 1 | . . . . 1 . . . . . . . . . . Damage Inflicted 18805 | . 607 52 107 3898 679 3056 . 162 2658 2600 263 . . 4723 Guns 192 | . . . 29 . . . . . . 163 . . . . Cannons 4924 | . 69 . . 466 122 . . . 382 67 . . . 3818 Explosions 4356 | . . . . 1151 . . . . 417 1632 263 . . 893 Melee 6844 | . 538 52 78 2281 557 1995 . 40 747 556 . . . . Ramming 12 | . . . . . . . . . . . . . . 12 Kinetic 3161 | . . . . . . . . . 382 67 . . . 2712 Thermal 2539 | . 69 . . 921 122 . . . . 163 . . . 1264 Explosive 3008 | . . . . 696 . . . . 417 1632 263 . . . Electromagnetic 764 | . . . 29 . . . . . . . . . . 735 Impact 3067 | . 538 52 . . . 1061 . 122 1112 182 . . . . Slashing 5425 | . . . 78 2281 557 1995 . 40 474 . . . . . Piercing 829 | . . . . . . . . . 273 556 . . . . Highest Corruption 31 | . . . 1 . . 13 13 . 11 11 11 . 16 31 Average Corruption 12 | . . . 1 . . 9 13 . 7 11 11 . 9 21 Corruption Purged 1 | . . . . . . . . . . . . . . 1 Corruption Blocked . | . . . . . . . . . . . . . . . Effects 149 | . . . . . . 20 3 . 13 53 2 . 4 54 Message Errors 31 | . . . . . . 6 1 . 3 8 . . 1 12 Matter Fused 27 | . . . . . . 2 . . 4 15 . . . 6 Heat Flow Errors 26 | . . . . . . 4 2 . 3 11 . . 1 5 Energy Discharges 11 | . . . . . . 2 . . 1 6 . . . 2 Parts Rejected 3 | . . . . . . . . . 1 2 . . . . Parts Fused 1 | . . . . . . . . . . . . . . 1 Data Loss (minor) 15 | . . . . . . 3 . . . 5 . . 1 6 Data Loss (major) 8 | . . . . . . 3 . . . 3 . . . 2 Misfires 4 | . . . . . . . . . . 1 . . . 3 Alerts 3 | . . . . . . . . . . 2 . . . 1 Misdirections 12 | . . . . . . . . . 1 . 2 . 1 8 Weapon Failures 8 | . . . . . . . . . . . . . . 8 Overload Shots . | . . . . . . . . . . . . . . . Overflow Damage 2695 | . 111 . . 399 96 860 . 82 540 260 29 . . 318 Projectiles 934 | . . . . . . 383 . 82 364 21 . . . 84 Explosions 525 | . . . . 150 . . . . 16 96 29 . . 234 Melee 1236 | . 111 . . 249 96 477 . . 160 143 . . . . Knockbacks 41 | . 2 1 . . . 5 . 1 10 . . . . 22 Impact 12 | . 2 1 . . . 4 . 1 4 . . . . . Kinetic 24 | . . . . . . . . . 3 . . . . 21 Secondary 5 | . . . . . . 1 . . 3 . . . . 1 Self-Inflicted Damage 171 | . . . . 32 . . . . 68 . 70 . . 1 Shots 4 | . . . . 1 . . . . 2 . 1 . . . Rammed 3 | . . . . . . . . . . . . . . 3 Targets Rammed 3 | . . . . . . . . . . . . . . 3 Kicked . | . . . . . . . . . . . . . . . Crushed . | . . . . . . . . . . . . . . . Highest Temperature 332 | . 124 . 39 332 114 176 196 . 204 242 5 . 253 324 Average Temperature 93 | . 68 . 19 122 57 78 85 . 63 81 5 . 145 107 Received Heat Transfer 2775 | . 135 42 156 681 99 234 . . 233 228 237 60 . 670 Effects 1 | . . . . . . . . . . . . . . 1 Energy Bleed 1 | . . . . . . . . . . . . . . 1 Siege Activations 2 | . . . . . . . . . . . . . . 2 Total Turns 56 | . . . . . . . . . . . . . . 56 Longest Duration 42 | . . . . . . . . . . . . . . 42 Martial Activations . | . . . . . . . . . . . . . . . Shielding Activations . | . . . . . . . . . . . . . . . Robots Disrupted 1 | . . . . . . 1 . . . . . . . . Combat Hostiles 1 | . . . . . . 1 . . . . . . . . Robots Corrupted 16 | . 5 . . . . 3 . . 5 . . . . 3 Combat Hostiles 11 | . 2 . . . . 3 . . 4 . . . . 2 Parts Fried 27 | . 12 . . . . 3 . . 9 . . . . 3 Impact Corruptions 32 | . 8 . . . . 11 . 2 9 1 . . . 1 Robots Melted 1 | . . . . 1 . . . . . . . . . . Combat Hostiles 1 | . . . . 1 . . . . . . . . . . Parts Melted 5 | . . . . 1 1 . . . . . . . . 3 Heat Transferred 2460 | . 148 . . 718 161 . . . . 333 . . . 1100 Parts Sabotaged . | . . . . . . . . . . . . . . . Parts Stolen . | . . . . . . . . . . . . . . . Parts Stripped . | . . . . . . . . . . . . . . . Power Chain Reactions 1 | . . . . . . . . . 1 . . . . . Alert | -11 -10 -10 -8 -6 -6 -6 -6 -5 -5 -5 -5 -4 -4 -4 ------- Run | Yrd Mat Sub Scr Fac Low Low Zio Pro Fac Upp Upp Fac Was Fac Maximum Alert Level 5 | . . . . 2 . . . . 2 . . 3 . 5 Low Security (%) 46 | . 100 . . 23 . . . . 53 . . 72 100 32 Level 1 28 | . . . . 59 . . . . 40 . . . . 2 Level 2 10 | . . . . 16 . . . . 6 . . 23 . 12 Level 3 2 | . . . . . . . . . . . . 3 . 7 Level 4 4 | . . . . . . . . . . . . . . 19 Level 5 5 | . . . . . . . . . . . . . . 22 High Security . | . . . . . . . . . . . . . . 3 Max Security . | . . . . . . . . . . . . . . . Peak Influence 2207 | . 76 . . 436 . . . . 487 . . 701 185 2207 Initial 185 | . . . . . . . . . 164 . . . 185 84 Average 374 | . 17 . . 245 . . . . 211 . . 172 160 941 Influence Increases 6867 | . 118 . . 1116 90 511 . 224 921 343 20 766 15 2743 Destroy 0b10 Robot/C 2620 | . 60 . . 500 80 300 . 140 320 280 20 80 . 840 Destroy 0b10 Robot/NC 280 | . 25 . . 45 . 10 . 5 60 10 . 15 . 110 Destroy Leader 422 | . 20 . . 120 10 20 . 10 60 20 . 10 . 152 Allied During Kill 205 | . . . . 43 . 16 . 69 9 3 . 9 . 56 Successful Hack 87 | . 11 . . 40 . . . . 6 . . 10 . 20 Select Force Hacks 50 | . . . . . . . . . 50 . . . . . Disable Machine 960 | . . . . 75 . . . . 30 . . 285 . 570 Anti-Garrison Action 600 | . . . . 150 . . . . . . . 150 . 300 Destroy Structure 758 | . 2 . . 38 . . . . 146 . . 102 . 470 Advance Influence 150 | . . . . . . . . . 150 . . . . . Partial Spotted 15 | . . . . . . . . . . . . . 15 . Lose Combat Pursuer 720 | . . . . 105 . 165 . . 90 30 . 105 . 225 Influence Decreases 4680 | . 118 . . 713 330 508 166 200 484 755 69 236 425 676 Entered New Map 921 | . . . . . 150 32 166 . 10 172 10 . 345 36 Time Decay 2530 | . 118 . . 413 180 386 . 160 334 493 10 36 50 350 Lost Part 640 | . . . . 80 . 70 . . 80 90 30 10 10 270 Lost Ally 439 | . . . . 220 . 20 . 40 60 . 19 40 20 20 Purge Threat 150 | . . . . . . . . . . . . 150 . . Squads Dispatched 45 | . 3 . . 15 . 1 . . 5 . . 5 . 16 Investigation 18 | . 1 . . 9 . . . . 4 . . 2 . 2 Extermination 4 | . . . . 1 . . . . 1 . . . . 2 Reinforcement 6 | . 2 . . . . . . . . . . 1 . 3 Assault 12 | . . . . 2 . 1 . . . . . 2 . 7 Garrison 5 | . . . . 3 . . . . . . . . . 2 Intercept . | . . . . . . . . . . . . . . . Searches Triggered . | . . . . . . . . . . . . . . . Construction Impeded 2 | . . . . . . . . . . . . . . 2 Haulers Reinforced 1 | . . . . . . . . . . . . . . 1 Active Scanning Responses . | . . . . . . . . . . . . . . . Cargo Convoy Interrupts . | . . . . . . . . . . . . . . . Stealth | -11 -10 -10 -8 -6 -6 -6 -6 -5 -5 -5 -5 -4 -4 -4 --------- Run | Yrd Mat Sub Scr Fac Low Low Zio Pro Fac Upp Upp Fac Was Fac Distress Signals 9 | . . . . 1 . . . . . . . 2 . 6 Communications Jammed . | . . . . . . . . . . . . . . . Distress Signals . | . . . . . . . . . . . . . . . Times Spotted 251 | . 8 3 22 41 4 21 . 7 29 14 5 19 6 72 Peak Tracking Total 17 | . 3 3 17 11 4 7 . 4 5 7 5 9 6 12 Tactical Retreats 29 | . . . 1 5 . 7 . . 4 2 . 3 . 7 Traps | -11 -10 -10 -8 -6 -6 -6 -6 -5 -5 -5 -5 -4 -4 -4 ------- Run | Yrd Mat Sub Scr Fac Low Low Zio Pro Fac Upp Upp Fac Was Fac Traps Triggered 3 | . . . . 2 . . . . . . . 1 . . Indirectly . | . . . . . . . . . . . . . . . Trap Hack Attempts . | . . . . . . . . . . . . . . . Triggered . | . . . . . . . . . . . . . . . Disarmed . | . . . . . . . . . . . . . . . Reprogrammed 6 | . . . . . . . . . 6 . . . . . Reused . | . . . . . . . . . . . . . . . Traps Extracted . | . . . . . . . . . . . . . . . Installed . | . . . . . . . . . . . . . . . Triggered . | . . . . . . . . . . . . . . . Most Traps Carried 5 | . . . . . . 2 2 . . 5 5 . . . Objects Rigged 4 | . . . . . . . . . . . . . . 4 Exploded 1 | . . . . . . . . . . . . . . 1 Machines | -11 -10 -10 -8 -6 -6 -6 -6 -5 -5 -5 -5 -4 -4 -4 ---------- Run | Yrd Mat Sub Scr Fac Low Low Zio Pro Fac Upp Upp Fac Was Fac Machines Disabled 73 | . . . 5 6 . . . . 2 . . 20 . 40 Max in Single Turn 7 | . . . 1 4 . . . . 1 . . . . 7 Garrison Access 4 | . . . . 1 . . . . . . . 1 . 2 Machines Repaired . | . . . . . . . . . . . . . . . Machines Dismantled . | . . . . . . . . . . . . . . . Machines Sabotaged . | . . . . . . . . . . . . . . . Overloaded Fab Kills 9 | . . . . . . . . . 9 . . . . . Hacking | -11 -10 -10 -8 -6 -6 -6 -6 -5 -5 -5 -5 -4 -4 -4 --------- Run | Yrd Mat Sub Scr Fac Low Low Zio Pro Fac Upp Upp Fac Was Fac Machines Accessed 27 | . 1 . 4 8 . . . . 5 . . 5 . 4 Terminals 11 | . 1 . . 2 . . . . 2 . . 3 . 3 Fabricators 1 | . . . . . . . . . 1 . . . . . Repair Stations . | . . . . . . . . . . . . . . . Recycling Units 9 | . . . . 4 . . . . 2 . . 2 . 1 Scanalyzers . | . . . . . . . . . . . . . . . Garrison Access 2 | . . . . 2 . . . . . . . . . . Total Hacks 94 | . 5 . 21 18 . . . . 11 . . 30 . 9 Successful 55 | . 3 . 21 8 . . . . 7 . . 13 . 3 Failed 39 | . 2 . . 10 . . . . 4 . . 17 . 6 Catastrophic 7 | . . . . 4 . . . . . . . 1 . 2 Database Lockouts . | . . . . . . . . . . . . . . . Manual 41 | . . . . 10 . . . . 4 . . 19 . 8 Terminals 55 | . 5 . . 9 . . . . 7 . . 27 . 7 Fabricators 2 | . . . . . . . . . 2 . . . . . Repair Stations . | . . . . . . . . . . . . . . . Recycling Units 11 | . . . . 4 . . . . 2 . . 3 . 2 Scanalyzers . | . . . . . . . . . . . . . . . Garrison Access 5 | . . . . 5 . . . . . . . . . . Terminal Hacks 38 | . 3 . 21 3 . . . . 3 . . 8 . . Record 19 | . . . 19 . . . . . . . . . . . Part Schematic 1 | . . . . . . . . . . . . 1 . . Prototype ID Bank 1 | . . . . . . . . . . . . 1 . . Open Door 1 | . . . 1 . . . . . . . . . . . Branch Access Points 3 | . 1 . . 1 . . . . 1 . . . . . Emergency Access Points 1 | . 1 . . . . . . . . . . . . . Machine Index 1 | . . . . . . . . . . . . 1 . . Terminal Index 1 | . . . . . . . . . . . . 1 . . Alert Level 3 | . . . . 1 . . . . . . . 2 . . Unreport Threat 1 | . . . . . . . . . . . . 1 . . Locate Traps 3 | . 1 . . 1 . . . . 1 . . . . . Reprogram Traps 1 | . . . . . . . . . 1 . . . . . Registered Prototypes 1 | . . . . . . . . . . . . 1 . . Proto ID Catalog 1 | . . . 1 . . . . . . . . . . . Fabricator Hacks 1 | . . . . . . . . . 1 . . . . . Network Status 1 | . . . . . . . . . 1 . . . . . Repair Station Hacks . | . . . . . . . . . . . . . . . Recycling Unit Hacks . | . . . . . . . . . . . . . . . Scanalyzer . | . . . . . . . . . . . . . . . Garrison Access Hacks . | . . . . . . . . . . . . . . . Unauthorized Hacks 16 | . . . . 5 . . . . 3 . . 5 . 3 Terminals 6 | . . . . 1 . . . . . . . 3 . 2 Assimilate 1 | . . . . . . . . . . . . 1 . . Botnet 3 | . . . . 1 . . . . . . . 1 . 1 Detonate 1 | . . . . . . . . . . . . . . 1 Skim 1 | . . . . . . . . . . . . 1 . . Fabricators 1 | . . . . . . . . . 1 . . . . . Overload 1 | . . . . . . . . . 1 . . . . . Repair Stations . | . . . . . . . . . . . . . . . Recycling Units 9 | . . . . 4 . . . . 2 . . 2 . 1 Fedlink 6 | . . . . 3 . . . . 2 . . 1 . . Scrapoids 1 | . . . . 1 . . . . . . . . . . Scraphulk 2 | . . . . . . . . . . . . 1 . 1 Scanalyzers . | . . . . . . . . . . . . . . . Garrison Access . | . . . . . . . . . . . . . . . Data Cores Recovered 1 | . . . . . . . . . 1 . . . . . Used . | . . . . . . . . . . . . . . . Hacking Detections 13 | . 1 . . 4 . . . . 2 . . 3 . 3 Full Trace Events 5 | . 1 . . 3 . . . . 1 . . . . . Feedback Events . | . . . . . . . . . . . . . . . Feedback Blocked . | . . . . . . . . . . . . . . . Robot Schematics Acquired 3 | . . . . . . . 3 . . . . . . . Robots Built . | . . . . . . . . . . . . . . . Authchips . | . . . . . . . . . . . . . . . Time . | . . . . . . . . . . . . . . . Total Robot Build Rating . | . . . . . . . . . . . . . . . Part Schematics Acquired 15 | . . . . . . . 14 . . . . 1 . . Parts Built . | . . . . . . . . . . . . . . . Authchips . | . . . . . . . . . . . . . . . Time . | . . . . . . . . . . . . . . . Total Part Build Rating . | . . . . . . . . . . . . . . . Parts Repaired . | . . . . . . . . . . . . . . . Time . | . . . . . . . . . . . . . . . Parts Recycled . | . . . . . . . . . . . . . . . Recycled Matter . | . . . . . . . . . . . . . . . Retrieved Matter . | . . . . . . . . . . . . . . . Retrieved Components . | . . . . . . . . . . . . . . . Parts Scanalyzed . | . . . . . . . . . . . . . . . Part Schematics Acquired . | . . . . . . . . . . . . . . . Parts Damaged . | . . . . . . . . . . . . . . . Bothacking | -11 -10 -10 -8 -6 -6 -6 -6 -5 -5 -5 -5 -4 -4 -4 ------------ Run | Yrd Mat Sub Scr Fac Low Low Zio Pro Fac Upp Upp Fac Was Fac Used RIF Installer . | . . . . . . . . . . . . . . . Robots Hacked . | . . . . . . . . . . . . . . . Non-combat . | . . . . . . . . . . . . . . . Combat . | . . . . . . . . . . . . . . . Robot Hacks Applied . | . . . . . . . . . . . . . . . Relay Couplers Released 7 | . . . . 3 . . . . . . . 2 . 2 Machine Destruction 7 | . . . . 3 . . . . . . . 2 . 2 Fabnet Peak Effective % . | . . . . . . . . . . . . . . . Robots Rewired 4 | . . . . . . 2 . . . 2 . . . . Allies Hacked . | . . . . . . . . . . . . . . . Hacks Repelled . | . . . . . . . . . . . . . . . Allies | -11 -10 -10 -8 -6 -6 -6 -6 -5 -5 -5 -5 -4 -4 -4 -------- Run | Yrd Mat Sub Scr Fac Low Low Zio Pro Fac Upp Upp Fac Was Fac Total Allies 24 | . . . . 12 . 2 5 . . 2 . 2 . 1 Largest Group 6 | . . . . 5 . 2 6 6 3 2 2 1 . 1 Highest-Rated Group 199 | . . . . 146 . 59 199 199 87 79 79 123 . 123 Highest-Rated Ally 123 | . . . . 47 . 30 51 51 31 49 49 123 . 123 Total Orders 4 | . . . . . . . . . . 1 . . 1 2 STAY 1 | . . . . . . . . . . . . . . 1 FOLLOW 1 | . . . . . . . . . . . . . . 1 EXPLORE 2 | . . . . . . . . . . 1 . . 1 . Ally Attacks 173 | . . . . 60 . 25 . 25 5 4 1 6 . 47 Total Damage 7477 | . . . . 1011 . 489 . 734 85 118 23 1689 . 3328 Kills 56 | . . . . 5 . 4 . 8 . 1 . 7 . 31 Allies Corrupted . | . . . . . . . . . . . . . . . Allies Melted 4 | . . . 3 1 . . . . . . . . . . Intel | -11 -10 -10 -8 -6 -6 -6 -6 -5 -5 -5 -5 -4 -4 -4 ------- Run | Yrd Mat Sub Scr Fac Low Low Zio Pro Fac Upp Upp Fac Was Fac Active Infowar (turns) 5251 | . . . 611 703 . 677 1240 325 550 1035 . . 1 109 Terrain 2944 | . . . . 131 . 677 1240 325 463 . . . . 108 Structural 1557 | . . . 73 572 . . . . . 912 . . . . T.N.C. 210 | . . . . . . . . . 87 123 . . . . Machine Analysis 706 | . . . . . . 426 280 . . . . . . . Cloaking 2 | . . . . . . . . . . . . . 1 1 Jamming 538 | . . . 538 . . . . . . . . . . . Robot Analysis Total . | . . . . . . . . . . . . . . . Derelict Logs Recovered 4 | . . . . . . 1 . 1 . 2 . . . . Drone Launches 5 | . . . . 1 . . . . . 1 . 1 2 . Drone Recoveries 1 | . . . . . . . . . . 1 . . . . Exploration | -11 -10 -10 -8 -6 -6 -6 -6 -5 -5 -5 -5 -4 -4 -4 ------------- Run | Yrd Mat Sub Scr Fac Low Low Zio Pro Fac Upp Upp Fac Was Fac Turns Passed 8844 | . 424 119 1019 1057 365 901 1240 325 751 1550 51 121 110 811 Spaces Moved 5669 | 1 192 73 846 655 268 581 983 236 388 402 30 169 200 645 Core 699 | . . . . . . . . . 1 165 13 162 200 158 Treads 11 | . . . . . . . . . . . . . . 11 Legs 3431 | 1 192 47 105 655 268 581 983 236 316 44 . . . 3 Wheels 1160 | . . 26 741 . . . . . 71 193 17 7 . 105 Hover 306 | . . . . . . . . . . . . . . 306 Flight 62 | . . . . . . . . . . . . . . 62 Fastest Speed 35 | 120 120 80 45 90 112 112 120 120 120 50 50 50 50 35 Average Speed 123 | 120 175 152 89 119 112 121 120 120 142 345 130 52 50 59 Slowest Speed 1000 | 120 190 260 95 170 120 190 120 120 700 1000 550 115 50 160 Overloaded Moves 92 | . . . 92 . . . . . . . . . . . Propulsion Burnouts . | . . . . . . . . . . . . . . . Robots Hopped . | . . . . . . . . . . . . . . . Potential Cave-ins . | . . . . . . . . . . . . . . . Cave-ins Triggered . | . . . . . . . . . . . . . . . Exploration Rate (%) 37 | 1 34 5 45 17 53 65 82 46 11 79 6 8 92 16 Regions Visited 14 Branch Regions 8 Pre-discovered Areas 4 | . . . 3 1 . . . . . . . . . . Known Exits Taken 6 | . . . 1 1 1 . . 1 1 1 . . . . Unknown Exits Taken 6 | 1 1 1 . . . 1 1 . . . 1 . . . Scrap Searched 16 | . . . 2 . . 7 2 2 . 3 . . . . Spaces Dug 12 | . 2 . . 3 1 4 . . 2 . . . . . Terrain Destroyed 445 | . 2 . . 47 3 5 . . 90 93 13 . . 192 Melee 12 | . 2 . . 3 1 4 . . 2 . . . . . Projectile 59 | . . . . 7 2 1 . . 15 . . . . 34 AOE 374 | . . . . 37 . . . . 73 93 13 . . 158 Terrain Rammed . | . . . . . . . . . . . . . . . Walls Destroyed . | . . . . . . . . . . . . . . . Machines Disabled . | . . . . . . . . . . . . . . . Actions | -11 -10 -10 -8 -6 -6 -6 -6 -5 -5 -5 -5 -4 -4 -4 --------- Run | Yrd Mat Sub Scr Fac Low Low Zio Pro Fac Upp Upp Fac Was Fac Total 6945 | . 235 77 1100 818 306 706 1044 277 513 514 44 201 208 902 Wait 408 | . 2 . 180 28 4 25 35 31 16 15 4 22 4 42 Move 5656 | . 191 72 845 654 267 580 982 235 387 401 29 169 199 645 Hop . | . . . . . . . . . . . . . . . Pick Up 89 | . 8 . 20 12 2 2 9 3 11 16 . 1 . 5 Fast Attach 84 | . . . 8 11 1 6 1 . 5 6 . 4 3 39 Attach 63 | . 1 2 2 11 1 9 2 . 6 11 1 2 1 14 Detach 41 | . 1 1 3 3 1 8 1 . 3 4 . 1 1 14 Swap 73 | . 3 . 7 18 7 4 5 1 6 4 . . . 18 Drop 120 | . 2 . 25 12 6 5 8 4 12 12 9 2 . 23 Fire 216 | . 5 . 2 17 3 15 . 1 48 25 1 . . 99 Melee 172 | . 22 2 8 52 14 41 1 1 19 12 . . . . Ram 1 | . . . . . . . . . . . . . . 1 Kick . | . . . . . . . . . . . . . . . Crush 2 | . . . . . . . . . . . . . . 2 Escape Stasis . | . . . . . . . . . . . . . . . Rewire 19 | . . . . . . 11 . . . 8 . . . . Trap . | . . . . . . . . . . . . . . . Miscellaneous 1 | . . . . . . . . 1 . . . . . . Route ------- -11/Scrapyard -10/Materials (discovered 4 exits: [*Mat] / *Min x2 / [*Sub]) -10/Subcaves -8/Scraptown (discovered 2 exits: *Fac x2) -6/Factory (discovered 4 exits: *Low x2 / Ext x2) -6/Lower Caves -6/Lower Caves -6/Zion -5/Proximity Caves -5/Factory (discovered 2 exits: *Upp x2) -5/Upper Caves -5/Upper Caves -4/Factory (discovered 3 exits: Res x3) -4/Waste -4/Factory History --------- Turn | Location | Event 1 | -11/Scrapyard | Discovered new exit (range 0) 1 | -11/Scrapyard | Entered Materials 188 | -10/Materials | Discovered new exit (range 8) 204 | -10/Materials | Identified exit to Mines 308 | -10/Materials | Build established: Mutant 361 | -10/Materials | Discovered new exit (range 10) 425 | -10/Materials | Entered Subcaves 426 | -10/Subcaves | Approached by a straggling Scientist 432 | -10/Subcaves | Scientist uncovered a shortcut to Scraptown 490 | -10/Subcaves | Ambushed by Subdwellers from Twisted Machinery 544 | -10/Subcaves | Entered Scraptown 556 | -8/Scraptown | Lost 4 parts (1p2n1w) 622 | -8/Scraptown | Heard Great Nut preacher, LISTEN AND RECITE! 729 | -8/Scraptown | Visited UFD Registry 729 | -8/Scraptown | Registered with UFD as "Pulseroller" 765 | -8/Scraptown | Visited Cartography Club 790 | -8/Scraptown | Found Surveybot 17 Chip 827 | -8/Scraptown | Found Deep Structural Scanner 837 | -8/Scraptown | Learned location of Upper Caves (-5) 837 | -8/Scraptown | Learned location of Quarantine (-3) 837 | -8/Scraptown | Learned 16 Factory zone layouts 837 | -8/Scraptown | Learned 12 Research zone layouts 837 | -8/Scraptown | Learned 4 Access zone layouts 837 | -8/Scraptown | Learned 4 Recycling zone layouts 837 | -8/Scraptown | Learned 16 Lower Caves zone layouts 837 | -8/Scraptown | Learned 24 Proximity Caves zone layouts 837 | -8/Scraptown | Learned location of 2 exits from Research 837 | -8/Scraptown | Identified exit to Factory 837 | -8/Scraptown | Learned location of 1 exit from Factory 865 | -8/Scraptown | Visited Sword Containment 902 | -8/Scraptown | Visited Derelict Rescue Squad 908 | -8/Scraptown | Found DRS Beacon 933 | -8/Scraptown | Visited Junk Cannon Lab 939 | -8/Scraptown | Found Prototype Special Weapon 939 | -8/Scraptown | Identified Junk Cannon 962 | -8/Scraptown | Visited Abandonware Association 972 | -8/Scraptown | Learned abandonware demo "SHUTEYE.EXE" 972 | -8/Scraptown | Learned abandonware demo "MELTYB.EXE" 1004 | -8/Scraptown | Visited Science Guys 1079 | -8/Scraptown | Visited Curators Association 1164 | -8/Scraptown | Met Optimus 1164 | -8/Scraptown | Accepted into 0bPrime 1428 | -8/Scraptown | Civil war broke out across Scraptown 1466 | -8/Scraptown | Found Siege Cannon Replica 1477 | -8/Scraptown | Lost 5 allies 1477 | -8/Scraptown | Found Surveybot 24 Chip 1488 | -8/Scraptown | Found Potential Leg 1516 | -8/Scraptown | Core integrity fell below 50% 1530 | -8/Scraptown | Found Master Drone Bay 1563 | -8/Scraptown | Entered Factory 1563 | -6/Factory | Evolved 8 slots: Power x1, Propulsion x3, Utility x3, Weapon x1 1564 | -6/Factory | Identified exit to Lower Caves 1565 | -6/Factory | Identified exit to Extension 1609 | -6/Factory | Garrison activated, responded to threat 1736 | -6/Factory | Scrapoid reinforcements arrived 1810 | -6/Factory | Loaded intel: 7 recycling unit locations 1844 | -6/Factory | Lost 3 allies 1983 | -6/Factory | Master Drone dominated Y-54 Guardian. 2076 | -6/Factory | Learned location of Protoforge (-3) 2188 | -6/Factory | Master Drone dominated G-50 Soldier. 2316 | -6/Factory | Master Drone dominated H-66 Slayer. 2373 | -6/Factory | Master Drone dominated P-60 Hacker. 2388 | -6/Factory | Master Drone dominated G-50 Soldier. 2404 | -6/Factory | Master Drone dominated G-50 Soldier. 2410 | -6/Factory | Master Drone dominated G-67 Veteran. 2449 | -6/Factory | Lost 4 allies 2620 | -6/Factory | Entered Lower Caves 2621 | -6/Lower Caves | Identified exit to Lower Caves 2718 | -6/Lower Caves | Build established: Scavenger-Mutant 2805 | -6/Lower Caves | Encountered a Warlord checkpoint 2985 | -6/Lower Caves | Entered another Lower Caves area 3002 | -6/Lower Caves | Encountered a Warlord checkpoint 3240 | -6/Lower Caves | Learned Factory emergency access door positions 3244 | -6/Lower Caves | Attracted the attention of an 0b10 outpost 3428 | -6/Lower Caves | System corruption reached 10% 3472 | -6/Lower Caves | Lost 5 parts (2p1n2u) 3685 | -6/Lower Caves | Discovered new exit (range 14) 3701 | -6/Lower Caves | Build established: Scavenger-Assassin 3886 | -6/Lower Caves | Entered Zion 3886 | -6/Zion | Accompanied by 1 ally 3958 | -6/Zion | System corruption cleaned by Quarantine Array 4268 | -6/Zion | Turned away by Imprinter 4346 | -6/Zion | Gained Derelict followers 4472 | -6/Zion | Build established: Scavenger-Mutant 4532 | -6/Zion | Found GAL Module 4636 | -6/Zion | Found CR-A16's Pointy Stick 5089 | -6/Zion | Discovered new exit (range 14) 5126 | -6/Zion | Entered Proximity Caves 5126 | -5/Proximity Caves | Accompanied by 6 allies 5127 | -5/Proximity Caves | Identified exit to Factory 5127 | -5/Proximity Caves | Activated DRS Beacon 5203 | -5/Proximity Caves | Spotter reported a threat 5310 | -5/Proximity Caves | Learned Factory garrison access intel 5451 | -5/Proximity Caves | Entered Factory 5451 | -5/Factory | Accompanied by 3 allies 5451 | -5/Factory | Evolved 2 slots: Utility x2 5453 | -5/Factory | Loaded intel: 4 garrison access locations 5538 | -5/Factory | Loaded intel: 8 recycling unit locations 5673 | -5/Factory | Discovered new exit (range 16) 5735 | -5/Factory | Lost 3 allies 5918 | -5/Factory | System corruption reached 10% 5955 | -5/Factory | Lost 4 parts (3n1u) 6017 | -5/Factory | Identified exit to Upper Caves 6182 | -5/Factory | Build established: Hacker-Mutant 6202 | -5/Factory | Entered Upper Caves 6277 | -5/Upper Caves | Learned Factory interactive machine intel 6374 | -5/Upper Caves | Lost 5 parts (2n1u2w) 7336 | -5/Upper Caves | Attracted the attention of an 0b10 outpost 7358 | -5/Upper Caves | Core integrity fell below 50% 7393 | -5/Upper Caves | Lost 5 parts (2p3u) 7697 | -5/Upper Caves | Identified exit to Upper Caves 7752 | -5/Upper Caves | Entered another Upper Caves area 7752 | -5/Upper Caves | Accompanied by 2 allies 7765 | -5/Upper Caves | Discovered new exit (range 14) 7785 | -5/Upper Caves | Build established: Wizard-Mutant 7797 | -5/Upper Caves | Core integrity fell below 20% 7803 | -5/Upper Caves | Entered Factory 7803 | -4/Factory | Evolved 2 slots: Propulsion x2 7804 | -4/Factory | Identified exit to Research 7805 | -4/Factory | Loaded intel: 53 interactive machine locations 7833 | -4/Factory | Lost 5 parts (1n1u3w) 7834 | -4/Factory | Loaded intel: 8 recycling unit locations 7883 | -4/Factory | Scraphulk reinforcements arrived 7888 | -4/Factory | Lost 3 parts (1n2u) 7891 | -4/Factory | Garrison activated, responded to threat 7924 | -4/Factory | Manually triggered Chute Trap 7924 | -4/Factory | Sucked down chute 7924 | -4/Factory | Entered Waste 7939 | -4/Waste | EMP discharged 7944 | -4/Waste | Spotted C-40 Crusher 7945 | -4/Waste | Spotted C-40 Crusher 7950 | -4/Waste | Lost 3 allies 7960 | -4/Waste | Spotted C-40 Crusher 7962 | -4/Waste | Spotted C-40 Crusher 7991 | -4/Waste | Spotted C-40 Crusher 8004 | -4/Waste | Crushed by Compactor (1 part destroyed, 1 dropped) 8011 | -4/Waste | Spotted C-40 Crusher 8018 | -4/Waste | Discovered new exit (range 13) 8025 | -4/Waste | System corruption reached 10% 8034 | -4/Waste | Entered Factory 8208 | -4/Factory | Build established: Mutant 8235 | -4/Factory | Scraphulk reinforcements arrived? 8242 | -4/Factory | Lost 3 parts (1p2u) 8404 | -4/Factory | Garrison activated, responded to threat 8458 | -4/Factory | Garrison activated, responded to threat 8459 | -4/Factory | Lost 3 parts (1n2u) 8534 | -4/Factory | First assault squad dispatched 8595 | -4/Factory | Found Prototype Hackware 8595 | -4/Factory | Identified Exp. System Shield 8760 | -4/Factory | Core integrity fell below 50% 8767 | -4/Factory | Destroyed 7 combat bots 8802 | -4/Factory | System corruption reached 30% 8820 | -4/Factory | Lost 15 parts (1p6n4u4w) 8820 | -4/Factory | High security lockdown imminent 8845 | -4/Factory | Self-destructed Last Messages --------------- Trojan loaded successfully. Testing... Scanning machine control network... Found 4 applicable machines. 4EOUWTNK15: Fusion Modulator OOPYK09LQU: Fusion Modulator LALC9QH0G7: Fusion Modulator 5NRPHCRIDH: Fusion Modulator Infected machine control systems. 08812_ Y9U:U2:IQUQ>AAYG>9BK3AE GGUL 2JHOP 08820_ Fusion Modulator detonated. 08820_ P-70 Sage destroyed. 08820_ ALERT: High security lockdown imminent, T-100. 08820_ Fusion Modulator explodes. 08820_ Terminal disabled. 08822_ VTOL Module destroyed. 08822_ Adv. Thermal Shield destroyed. 08830_ Acquired Adv. System Restoration Module. 08831_ System corrupted: Matter fused (-6). 08843_ Adv. System Restoration Module purges 1% system corruption (30%). Map ----- +----------------------------------------------------+ | ####"% %"% #?????????????? | | #??## %""% #?????????????? | | ####### % " #?????????????? | | % """ " ########????????? | | % """ "" # #####????? | | """ "" ""###??? | | " #??? | | %" #??? | | #+#######/######+######+#### #??? | | *!= % " ??? ????# #??? | | % " "???"?????# #??? | | !% " "?????????# #??? | | %! % " "?????????# #??? | | |*% %!%%%!%%""?????????# #??? | | % %[%% ?????????# " #??? | | =!! ??????????####" " #??? | | % ?????????????#" " ! #??? | | "???????????????# " #??? | | G ???????????????# ###+##########??? | | " ""????????????????# #?# #???????????? | | " ????????????????# ###+####????????? | | ##"""""########??????########### # #????????? | | ??## # ???????# #l# """" #????????? | | ????#### ? ???????# l g + """" #????????? | | ????? / ?????????# ### """" #????????? | | #????? # ???????????# @ #?# """" #????????? | | ?????????????????????###########?# #????????? | | ?????????????????????????????????########????????? | | ?????????????????????????????????????????????????? | | ?????????????????????????????????????????????????? | | ?????????????????????????????????????????????????? | | ?????????????????????????????????????????????????? | | ?????????????????????????????????????????????????? | | ?????????????????????????????????????????????????? | | ?????????????????????????????????????????????????? | | ?????????????????????????????????????????????????? | | ?????????????????????????????????????????????????? | | ?????????????????????????????????????????????????? | | ?????????????????????????????????????????????????? | | ?????????????????????????????????????????????????? | | ?????????????????????????????????????????????????? | | ?????????????????????????????????????????????????? | | ?????????????????????????????????????????????????? | | ?????????????????????????????????????????????????? | | ?????????????????????????????????????????????????? | | ?????????????????????????????????????????????????? | | ?????????????????????????????????????????????????? | | ?????????????????????????????????????????????????? | | ?????????????????????????????????????????????????? | | ?????????????????????????????????????????????????? | +----------------------------------------------------+ Best States ------------- Heat Dissipation 133 Energy Generation 35 Energy Capacity 790 Matter Stores 300 Matter Capacity 450 Sight Range 16 Terrain Scan Range 16 Terrain Scan Density 3285 Jamming Range 12 Additional Mass Support 9 Armor Coverage 100 Resistance: TH 30 Evasion (%) 66 Melee Accuracy 8 Target Analysis 9 Core Analysis 6 Recoil Reduction 3 Matter Filtering 50 Particle Charging 20 Force Boost 20 Offensive Hacking 35 Defensive Hacking 28 Item Schematics ----------------- Hyp. Coil Gun | -6/Zion | Archive Hpw. Shock Rifle | -6/Zion | Archive Adv. Target Analyzer | -6/Zion | Archive Adv. Signal Interpreter | -6/Zion | Archive Adv. Drone Bay | -6/Zion | Archive IFF Parser | -6/Zion | Archive Adv. Plasma Cannon | -6/Zion | Archive Phase Shifter | -6/Zion | Archive Disruptor Cannon | -6/Zion | Archive Hvy. Machine Gun | -6/Zion | Archive Imp. KE Penetrator | -6/Zion | Archive Imp. Target Analyzer | -6/Zion | Archive Adv. Recoil Stabilizer | -6/Zion | Archive Focal Shield | -6/Zion | Archive Adv. Powered Armor | -4/Factory | Hacked Robot Schematics ------------------ W-25 Informer | -6/Zion | Archive M-14 Sweeper | -6/Zion | Archive Y-54 Guardian | -6/Zion | Archive Fabricated ------------ Nothing Repaired ---------- Nothing Alien Tech Used ----------------- None Achievements -------------- None Challenges ------------ None Game ------ Seed SpacefoldFortressMegatreads Manual? 0 Play Time 01:09:59 Cumulative 1127.9 hours Start 2025.06.26 @ 15:21:49 End 2025.06.26 @ 16:31:43 Sessions 1 Manual Loads 0 Difficulty Rogue Special Mode None Game No. 1385 Rogue 1101 Adventurer 124 Explorer 160 Win Type - Total 50 Types 36/0/8/4/1/0/0/1/0/0 Lore% 92 Gallery% 87 Achievement% 81 Wizard Run 0 Options --------- Layout 0 ASCII 0 Keyboard 1 Movement Numpad Keybinds 0 Fullscreen 2 Font 18/X11 Map View 76x50 Zoom Use 0% Tactical HUD 1 Map Filters NONE Filters NONE Steam 1 RUN: 907c2356-110e-4c53-9a48-6dd552425476